Cogmind - Beta 14 @@@ ROGUE MODE // 2024.10.25 @ 21:55:21 Player: zitsii Result: Destroyed by 1K-SYO(z) with Makeshift Spear Performance ------------- Evolutions (1) 500 Regions Visited (5) 1000 Robots Destroyed (47) 235 Value Destroyed (839) 839 Prototype IDs (2) 40 Alien Tech Used (0) 0 Bonus (-158) -158 TOTAL SCORE: 2456 Bonus ------- High Alert Combat Kills 66 Follower Combat Kills 182 Friendly Fire -406 Cogmind --------- Core Integrity 0/400 Matter 300/300 Energy 100/100 System Corruption 0% Temperature Cool (0) Movement Core (1350) Ox26 Location -7/Zion Parts ------- > --- POWER (1) -------- (None) > --- PROPULSION (3) --- (None) > --- UTILITY (3) ------ Huge Storage Unit > --- WEAPON (2) ------- (None) > --- INVENTORY (25) --- Light Ion Engine Peak State ------------ > --- POWER ------------ Light Nuclear Core > --- PROPULSION ------- Light Treads Armored Treads > --- UTILITY ---------- Medium Storage Unit Improved Sensor Array ECM Suite > --- WEAPON ----------- Light Cannon Improved Grenade Launcher > --- INVENTORY -------- Ion Engine Heavy Ion Engine Heavy Ion Engine Heavy Ion Engine Heavy Ion Engine Heavy Ion Engine Core Shielding Makeshift Sword [Rating: 18] Favorites ----------- Power Ion Engine Engine Ion Engine Power Core Light Nuclear Core Propulsion Light Treads Treads Light Treads Leg Carbon-fiber Leg Utility Huge Storage Unit Device Improved Terrain Scanner Storage Huge Storage Unit Protection Light Armor Plating Weapon Shock Rifle Energy Gun Shock Rifle Ballistic Cannon Light Cannon Launcher Improved Grenade Launcher Impact Weapon Heavy Flail Piercing Weapon CR-A16's Pointy Stick Build | -11 -10 -10 -9 -9 -7 ------- Run | Yrd Mat Min Mat Min Zio Slots Evolved 2 | . . . 2 . . Power . | . . . . . . Propulsion 1 | . . . 1 . . Utility 1 | . . . 1 . . Weapon . | . . . . . . Parts Attached 42 | 6 1 9 16 3 7 Power 5 | 1 . 2 1 1 . Engine 3 | 1 . 1 . 1 . Core 2 | . . 1 1 . . Reactor . | . . . . . . Propulsion 12 | 2 . 3 3 2 2 Treads 11 | 2 . 2 3 2 2 Leg 1 | . . 1 . . . Wheel . | . . . . . . Hover . | . . . . . . Flight . | . . . . . . Utility 11 | 2 1 1 6 . 1 Device 4 | 1 . 1 1 . 1 Storage 4 | 1 1 . 2 . . Processor . | . . . . . . Hackware . | . . . . . . Protection 3 | . . . 3 . . Artifact . | . . . . . . Weapon 14 | 1 . 3 6 . 4 Energy Gun 7 | 1 . . 4 . 2 Energy Cannon . | . . . . . . Ballistic Gun . | . . . . . . Ballistic Cannon 1 | . . 1 . . . Launcher 3 | . . 1 2 . . Special Weapon . | . . . . . . Impact Weapon 1 | . . 1 . . . Slashing Weapon . | . . . . . . Piercing Weapon 2 | . . . . . 2 Special Melee Weapon . | . . . . . . Unidentified Prototypes . | . . . . . . Parts Lost 19 | . 1 . 6 5 7 Power 2 | . . . . 1 1 Propulsion 5 | . . . 1 . 4 Utility 5 | . . . 2 2 1 Weapon 7 | . 1 . 3 2 1 Highest Loss Streak 7 | . 1 . 2 3 7 To Critical Strikes . | . . . . . . Average Slot Usage (%) 85 | . 83 90 94 69 78 Engine 8 | . 14 13 . 7 10 Core 3 | . . . 11 3 . Treads 30 | . 28 28 30 33 32 Device 9 | . 14 14 7 . 9 Storage 12 | . 14 14 11 11 11 Protection 4 | . . . 13 6 . Energy Gun 7 | . 12 . 10 8 10 Ballistic Cannon 4 | . . 10 3 . . Launcher 4 | . . 8 6 . . Peak Build Rating 18 | 8 8 15 18 16 15 Average Rating 12 | 5 7 10 16 9 12 On Entrance 9 | . 8 7 15 18 6 Naked Turns . | . . . . . . Heaviest Build 96 | 13 18 25 96 95 92 Greatest Support 60 | 40 40 40 60 60 60 Greatest Overweight (x) 26 | . . . 1 1 26 Average Overweight (x) . | . . . . 1 1 Largest Inventory Capacity 25 | 8 10 10 25 25 25 Average Capacity 17 | 7 9 10 18 25 25 Most Carried 11 | 2 2 7 11 7 6 Average Carried 4 | . 1 1 7 5 3 Final Capacity 25 | 8 10 10 25 25 25 Final Carried 6 | 1 1 3 6 6 1 Class Distribution -------------------- 55% | Mutant 44% | Scavenger-Mutant Dominant Class ---------------- Mutant | -10/Materials Mutant | -10/Mines Scavenger-Mutant | -9/Materials Mutant | -9/Mines Scavenger-Mutant | -7/Zion Resources | -11 -10 -10 -9 -9 -7 ----------- Run | Yrd Mat Min Mat Min Zio Matter Collected 997 | 260 10 111 466 56 94 Remotely . | . . . . . . Salvage Created 1155 | 196 106 26 827 . . Parts 82 | 15 6 4 57 . . Haulers Intercepted 2 | . . . 2 . . Recyclers Shooed 3 | 1 . . 2 . . Parts Field Recycled . | . . . . . . Retrieved Matter . | . . . . . . Parts Self-Destructed . | . . . . . . Prevented . | . . . . . . Kills | -11 -10 -10 -9 -9 -7 ------- Run | Yrd Mat Min Mat Min Zio Combat Hostiles Destroyed 23 | . 2 3 17 1 . Guns 10 | . 2 . 8 . . Cannons 2 | . . . 2 . . AOE 11 | . . 3 7 1 . Classes Destroyed 16 | 3 1 1 9 1 1 Worker 6 | 2 . . 4 . . Builder 3 | . . . 3 . . Tunneler 5 | 3 . 1 1 . . Hauler 2 | . . . 2 . . Recycler 2 | 1 . . 1 . . Mechanic 1 | . . . 1 . . Operator 1 | . . . 1 . . Watcher 2 | . . . 2 . . Swarmer 6 | . . 3 3 . . Grunt 13 | . 2 . 11 . . Brawler 1 | . . . 1 . . Duelist 1 | . . . 1 . . Sentry 1 | . . . 1 . . Demolisher 1 | . . . . 1 . Zionite 1 | . . . 1 . . Tinkerer 1 | . . . . . 1 Thug 1 | . . . 1 . . Best Kill Streak 5 | 2 2 3 5 1 . Combat Bots Only 3 | . 2 3 2 1 . Max Kills in Single Turn 3 | 1 1 3 3 1 1 Gunslinging 1 | . . . 1 . . Exploded 3 | . . 3 1 1 . Melee . | . . . . . . Uniques/NPCs Destroyed . | . . . . . . Combat | -11 -10 -10 -9 -9 -7 -------- Run | Yrd Mat Min Mat Min Zio Hostile Shots Fired 177 | . 40 3 96 2 36 Missed 65 | . 17 1 34 . 13 Damage Taken 2680 | 30 271 15 1140 422 802 Core 493 | 15 56 6 70 60 286 Absorbed by Shields . | . . . . . . Redirected to Shielding 18 | . . . 4 14 . Core Remaining (%) 81 | 94 . 69 . . . Volleys Fired 105 | 21 13 2 54 10 5 Largest 2 | 1 1 2 2 2 1 Hottest 100 | 40 40 71 100 95 50 Shots Fired 153 | 21 13 3 91 20 5 Gun 111 | 21 13 . 52 20 5 Cannon 16 | . . 2 14 . . Launcher 26 | . . 1 25 . . Special . | . . . . . . Kinetic 16 | . . 2 14 . . Thermal . | . . . . . . Explosive 26 | . . 1 25 . . Electromagnetic 111 | 21 13 . 52 20 5 Robot Hit Streak 8 | 7 6 6 8 1 5 Robot Miss Streak 5 | 2 1 . 5 1 1 Penetration Max . | . . . . . . Secondary Targets 1 | . . . 1 . . Max Gunslinging Chain 1 | . . . 1 . . Shots Hit Robots 92 | 16 10 3 56 3 4 Core Hits 62 | 6 5 3 47 1 . Critical Kills . | . . . . . . Critical Parts Destroyed . | . . . . . . Critical Strikes 1 | . 1 . . . . Corrupt 1 | . 1 . . . . Melee Attacks . | . . . . . . Impact . | . . . . . . Slashing . | . . . . . . Piercing . | . . . . . . Sneak Attacks . | . . . . . . Combat Hostiles . | . . . . . . Follow-up Attacks . | . . . . . . Damage Inflicted 3120 | 334 152 284 2167 115 68 Guns 1051 | 203 151 . 585 53 59 Cannons 91 | . . 36 55 . . Explosions 1968 | 131 . 248 1527 62 . Melee . | . . . . . . Ramming 10 | . 1 . . . 9 Kinetic 91 | . . 36 55 . . Thermal 225 | 131 . . 32 62 . Explosive 1743 | . . 248 1495 . . Electromagnetic 1051 | 203 151 . 585 53 59 Impact . | . . . . . . Slashing . | . . . . . . Piercing . | . . . . . . Highest Corruption 10 | . . . . 10 10 Average Corruption 9 | . . . . 9 10 Corruption Purged . | . . . . . . Corruption Blocked . | . . . . . . Effects 40 | . . . . 19 21 Message Errors 12 | . . . . 6 6 Matter Fused 9 | . . . . 5 4 Heat Flow Errors 9 | . . . . 2 7 Energy Discharges 6 | . . . . 5 1 Data Loss (minor) 2 | . . . . 1 1 Data Loss (major) 2 | . . . . . 2 Overload Shots . | . . . . . . Overflow Damage 83 | 10 . 39 34 . . Projectiles . | . . . . . . Explosions 83 | 10 . 39 34 . . Melee . | . . . . . . Knockbacks 1 | . . . 1 . . Impact . | . . . . . . Kinetic 1 | . . . 1 . . Secondary . | . . . . . . Self-Inflicted Damage 397 | 30 . . 359 . 8 Shots 13 | 1 . . 12 . . Rammed 2 | . 2 . . . . Targets Rammed 3 | . 2 . . . 1 Kicked . | . . . . . . Crushed 1 | . . . . . 1 Highest Temperature 297 | 12 27 9 297 279 248 Average Temperature 78 | 12 18 6 72 110 91 Received Heat Transfer 462 | . 147 . 315 . . Siege Activations . | . . . . . . Robots Corrupted . | . . . . . . Combat Hostiles . | . . . . . . Parts Fried 3 | 1 . . 2 . . Impact Corruptions . | . . . . . . Robots Melted . | . . . . . . Combat Hostiles . | . . . . . . Parts Melted 1 | . . 1 . . . Heat Transferred 250 | 150 . . 50 50 . Parts Sabotaged . | . . . . . . Parts Stolen . | . . . . . . Parts Stripped . | . . . . . . Power Chain Reactions 5 | 3 . . 1 1 . Alert | -11 -10 -10 -9 -9 -7 ------- Run | Yrd Mat Min Mat Min Zio Peak Influence 475 | 30 84 94 475 179 . Initial 178 | . 19 28 36 178 . Average 138 | 13 33 27 296 96 . Maximum Alert Level 2 | . . . 2 . . Low Security (%) 72 | 100 100 100 24 100 . Level 1 13 | . . . 36 . . Level 2 14 | . . . 39 . . Level 3 . | . . . . . . Level 4 . | . . . . . . Level 5 . | . . . . . . High Security . | . . . . . . Max Security . | . . . . . . Squads Dispatched 7 | . 2 1 4 . . Investigation 4 | . 1 1 2 . . Extermination . | . . . . . . Reinforcement 3 | . 1 . 2 . . Assault . | . . . . . . Garrison . | . . . . . . Intercept . | . . . . . . Searches Triggered . | . . . . . . Construction Impeded . | . . . . . . Haulers Reinforced . | . . . . . . Active Scanning Responses . | . . . . . . Cargo Convoy Interrupts . | . . . . . . Stealth | -11 -10 -10 -9 -9 -7 --------- Run | Yrd Mat Min Mat Min Zio Distress Signals 6 | . . . 6 . . Communications Jammed . | . . . . . . Distress Signals . | . . . . . . Times Spotted 60 | . 9 4 41 1 5 Peak Tracking Total 8 | . 4 3 8 1 5 Tactical Retreats 2 | . . . 2 . . Traps | -11 -10 -10 -9 -9 -7 ------- Run | Yrd Mat Min Mat Min Zio Traps Triggered 1 | . 1 . . . . Indirectly . | . . . . . . Trap Hack Attempts . | . . . . . . Triggered . | . . . . . . Disarmed . | . . . . . . Reprogrammed . | . . . . . . Reused . | . . . . . . Traps Extracted . | . . . . . . Installed . | . . . . . . Triggered . | . . . . . . Machines | -11 -10 -10 -9 -9 -7 ---------- Run | Yrd Mat Min Mat Min Zio Machines Disabled 1 | . . . 1 . . Max in Single Turn 1 | . . . 1 . . Machines Repaired . | . . . . . . Machines Dismantled . | . . . . . . Machines Sabotaged . | . . . . . . Overloaded Fab Kills . | . . . . . . Hacking | -11 -10 -10 -9 -9 -7 --------- Run | Yrd Mat Min Mat Min Zio Machines Accessed 4 | . 1 1 2 . . Terminals 2 | . 1 . 1 . . Fabricators . | . . . . . . Repair Stations . | . . . . . . Recycling Units . | . . . . . . Scanalyzers 1 | . . . 1 . . Garrison Access . | . . . . . . Total Hacks 10 | . 3 1 6 . . Successful 7 | . 1 1 5 . . Failed 3 | . 2 . 1 . . Catastrophic . | . . . . . . Database Lockouts . | . . . . . . Manual . | . . . . . . Terminals 7 | . 3 . 4 . . Fabricators . | . . . . . . Repair Stations . | . . . . . . Recycling Units . | . . . . . . Scanalyzers 2 | . . . 2 . . Garrison Access . | . . . . . . Terminal Hacks 5 | . 1 1 3 . . Record 1 | . . . 1 . . Prototype ID Bank 1 | . . . 1 . . Open Door 1 | . . 1 . . . Alert Level 2 | . 1 . 1 . . Fabricator Hacks . | . . . . . . Repair Station Hacks . | . . . . . . Recycling Unit Hacks . | . . . . . . Scanalyzer 2 | . . . 2 . . Insert Component 1 | . . . 1 . . Analyze 1 | . . . 1 . . Garrison Access Hacks . | . . . . . . Unauthorized Hacks . | . . . . . . Terminals . | . . . . . . Fabricators . | . . . . . . Repair Stations . | . . . . . . Recycling Units . | . . . . . . Scanalyzers . | . . . . . . Garrison Access . | . . . . . . Data Cores Recovered . | . . . . . . Used . | . . . . . . Hacking Detections 3 | . 1 . 2 . . Full Trace Events 1 | . . . 1 . . Feedback Events . | . . . . . . Feedback Blocked . | . . . . . . Robot Schematics Acquired 2 | . . . . . 2 Robots Built . | . . . . . . Authchips . | . . . . . . Time . | . . . . . . Total Robot Build Rating . | . . . . . . Part Schematics Acquired 15 | . . . 1 . 14 Parts Built . | . . . . . . Authchips . | . . . . . . Time . | . . . . . . Total Part Build Rating . | . . . . . . Parts Repaired . | . . . . . . Time . | . . . . . . Parts Recycled . | . . . . . . Recycled Matter . | . . . . . . Retrieved Matter . | . . . . . . Retrieved Components . | . . . . . . Parts Scanalyzed 1 | . . . 1 . . Part Schematics Acquired 1 | . . . 1 . . Parts Damaged . | . . . . . . Bothacking | -11 -10 -10 -9 -9 -7 ------------ Run | Yrd Mat Min Mat Min Zio Used RIF Installer . | . . . . . . Robots Hacked . | . . . . . . Non-combat . | . . . . . . Combat . | . . . . . . Robot Hacks Applied . | . . . . . . Relay Couplers Released . | . . . . . . Fabnet Peak Effective % . | . . . . . . Robots Rewired . | . . . . . . Allies Hacked . | . . . . . . Hacks Repelled . | . . . . . . Allies | -11 -10 -10 -9 -9 -7 -------- Run | Yrd Mat Min Mat Min Zio Total Allies 5 | . . 5 . . . Largest Group 5 | . . 5 3 . . Highest-Rated Group 86 | . . 86 62 . . Highest-Rated Ally 31 | . . 31 31 . . Total Orders . | . . . . . . Ally Attacks 40 | . . 13 27 . . Total Damage 593 | . . 154 439 . . Kills 11 | . . 2 9 . . Allies Corrupted . | . . . . . . Allies Melted . | . . . . . . Intel | -11 -10 -10 -9 -9 -7 ------- Run | Yrd Mat Min Mat Min Zio Robot Analysis Total . | . . . . . . Derelict Logs Recovered 2 | . . 1 . 1 . Drone Launches . | . . . . . . Drone Recoveries . | . . . . . . Exploration | -11 -10 -10 -9 -9 -7 ------------- Run | Yrd Mat Min Mat Min Zio Turns Passed 5480 | 191 370 1458 1595 709 1157 Spaces Moved 2623 | 90 212 877 711 281 452 Core 9 | 8 . . . . 1 Treads 2614 | 82 212 877 711 281 451 Legs . | . . . . . . Wheels . | . . . . . . Hover . | . . . . . . Flight . | . . . . . . Fastest Speed 50 | 50 160 160 163 240 240 Average Speed 194 | 150 160 162 197 240 250 Slowest Speed 1350 | 160 160 165 243 240 1350 Overloaded Moves . | . . . . . . Propulsion Burnouts . | . . . . . . Robots Hopped . | . . . . . . Cave-ins Triggered 2 | . . . . 2 . Exploration Rate (%) 47 | 4 30 94 57 50 51 Regions Visited 5 Branch Regions 3 Pre-discovered Areas 1 | . . . . . 1 Known Exits Taken . | . . . . . . Unknown Exits Taken 5 | 1 1 1 1 1 . Scrap Searched 4 | . . 1 . . 3 Spaces Dug . | . . . . . . Terrain Destroyed 209 | 10 . 11 186 2 . Melee . | . . . . . . Projectile . | . . . . . . AOE 209 | 10 . 11 186 2 . Terrain Rammed 1 | . . . . . 1 Walls Destroyed . | . . . . . . Machines Disabled . | . . . . . . Actions | -11 -10 -10 -9 -9 -7 --------- Run | Yrd Mat Min Mat Min Zio Total 2842 | 125 229 905 816 296 471 Wait . | . . . . . . Move 2617 | 89 211 876 710 279 452 Hop . | . . . . . . Pick Up 46 | 8 1 11 22 2 2 Fast Attach 1 | . . . 1 . . Attach 24 | 6 . 4 8 1 5 Detach . | . . . . . . Swap 17 | . 1 5 7 2 2 Drop 27 | 1 1 7 14 1 3 Fire 105 | 21 13 2 54 10 5 Melee . | . . . . . . Ram 1 | . . . . . 1 Kick . | . . . . . . Crush 3 | . 2 . . . 1 Escape Stasis 1 | . . . . 1 . Rewire . | . . . . . . Trap . | . . . . . . Miscellaneous . | . . . . . . Route ------- -11/Scrapyard -10/Materials -10/Mines (discovered 2 exits: *Mat x2) -9/Materials (discovered 2 exits: [*Mat] / [*Min]) -9/Mines (discovered 3 exits: [*Mat] / [*Exi] / [*Zio]) -7/Zion (discovered 1 exit: [*Pro]) History --------- Turn | Location | Event 10 | -11/Scrapyard | Discovered new exit (range 14) 192 | -11/Scrapyard | Entered Materials 317 | -10/Materials | Build established: Mutant 389 | -10/Materials | Discovered new exit (range 13) 562 | -10/Materials | Entered Mines 570 | -10/Mines | Assisted by bots powering up and referring to "LRC-V3" 698 | -10/Mines | Discovered new exit (range 5) 777 | -10/Mines | Learned Materials trap positions 1069 | -10/Mines | Discovered new exit (range 5) 1149 | -10/Mines | Met a Derelict shopkeep closing up shop 1637 | -10/Mines | A weapon hastily lodged in a ceiling crevice suddenly fell to the ground 2020 | -10/Mines | Entered Materials 2020 | -9/Materials | Accompanied by 3 allies 2020 | -9/Materials | Evolved 2 slots: Propulsion x1, Utility x1 2021 | -9/Materials | Loaded intel: 24 trap records 2025 | -9/Materials | Led the pair of lost Derelicts to an unsafe place 2516 | -9/Materials | Discovered new exit (range 11) 2692 | -9/Materials | Build established: Scavenger-Mutant 2725 | -9/Materials | Discovered new exit (range 15) 3615 | -9/Materials | Entered Mines 3629 | -9/Mines | Met a Derelict bent on vengeance 3646 | -9/Mines | Assembled infested the area 3648 | -9/Mines | Deemed a non-threat by the Exiles lab entrance 3650 | -9/Mines | Discovered new exit (range 5) 3813 | -9/Mines | Crushed by falling debris 3844 | -9/Mines | Lost 3 parts (1p2u) 3870 | -9/Mines | Crushed by falling debris 3871 | -9/Mines | System corruption reached 10% 4118 | -9/Mines | Build established: Mutant 4142 | -9/Mines | Learned Materials terminal intel 4185 | -9/Mines | Discovered new exit (range 10) 4308 | -9/Mines | A Derelict revealed a hidden shortcut to a safe place 4324 | -9/Mines | Entered Zion 4575 | -7/Zion | Found CR-A16's Pointy Stick 4678 | -7/Zion | Discovered new exit (range 16) 4731 | -7/Zion | Build established: Scavenger-Mutant 4832 | -7/Zion | System corruption cleaned by Quarantine Array 4921 | -7/Zion | Learned location of Data Miner (-6) 5408 | -7/Zion | Attacked by Zionites 5452 | -7/Zion | Core integrity fell below 50% 5480 | -7/Zion | Core integrity fell below 20% 5481 | -7/Zion | Destroyed by 1K-SYO(z) with Makeshift Spear Last Messages --------------- Twisted Machinery. 05442_ 7X-A5C(z) pulls a Mak. Sword out of the Twisted Machinery. 05445_ Shock Rifle destroyed. KZ-N7N(z) bursts out of the Twisted Machinery. 05451_ Critical hit (Impale). 05451_ Ion Engine destroyed. 05452_ Broken Lgt. Treads destroyed. A strange signal echoes through Zion. 05460_ Lgt. Treads destroyed. 05460_ Arm. Treads destroyed. 05466_ Lgt. Treads severed. 05469_ Lgt. Treads destroyed. 05470_ LU-Y26(z) pulls a Mak. Hammer out of the Twisted Machinery. 05476_ KA-GHH(z) emerges from the Twisted Machinery. 05477_ Imp. Terrain Scanner destroyed. 05477_ KA-GHH(z) pulls a Mak. Hammer out of the Twisted Machinery. Map ----- +----------------------------------------------------+ | ???????????????#"""" ""#"##"""" " ! """#???????? | | ??????? ?????"?##"" "####"""""" !%"""#???????? | | ????????? ???""#""" ""$ """#???????? | | ??????????????#"""" " """ " """#???????? | | ??????????? ??"#"" "" "$" """#???????? | | ????????"??? ""#" "" """ " ""##???"???? | | ???????????? """" "" #""#?????#?? | | ???????????? """"" "" """#???????? | | ??????????? ####"" "" """"???????# | | ????????????????##" "" ??????? | | ?????????????#?"?#"""" ??????? | | ?????????????????#"""" """""" ????? | | ????????????????####"" " "" """" ????? | | ??????????????????###""" "" """ ???? | | ??????????#???"????#""#" "" ""#"""""""""#????? | | ??????????"?????#?##"# " """""""""""?????? | | ???????????#??"?#?##### """" ""????????? | | ?????????????????##< "" """"???????????? | | ?????????? ??######< """" """???????????? | | ??????????????????#<< #"" """"" ?????????? | | ?????????????????###"""" ""#""" ????????? | | ???????????????#?#?#""" """#"" ???????? | | ????????????????"?#"#" """"" """???????? | | ??????????????"???#""" z=z """#" """????????? | | ????????????"????##"" zzz """" ""?????????? | | ?????????????"???#"" %@ """ ??????????? | | ?????????????"???#"" """" "" ?????????? | | ?????????????????#""""""""""" "" "????????????? | | ?????????????????#"#"##"###"" "" "????????????? | | ?????????????????####?#""??""" """""?????????????? | | ??????????????????????##???#""""""#??????????????? | | ???????????????????????????????""##??????????????? | | ?????????????#????????#??????#???????????????????? | | ?????????????????????????????????????????????????? | | ?????????????????????????????????????????????????? | | ?????????????????????????????????????????????????? | | ?????????????????????????????????????????????????? | | ?????????????????????????????????????????????????? | | ?????????????????????????????????????????????????? | | ?????????????????????????????????????????????????? | | ??????????????????????????#??????????????????????? | | ?????????????????????????????????????????????????? | | ?????????????????????????????????????????????????? | | ?????????????????????????????????????????????????? | | ?????????????????????????????????????????????????? | | ?????????????????????????????????????????????????? | | ?????????????????????????????????????????????????? | | ?????????????????????????????????????????????????? | | ?????????????????????????????????????????????????? | | ?????????????????????????????????????????????????? | +----------------------------------------------------+ Best States ------------- Heat Dissipation 28 Energy Generation 14 Energy Capacity 250 Matter Stores 300 Matter Capacity 300 Sight Range 16 Robot Scan Range 15 Terrain Scan Range 16 Terrain Scan Density 10 ECM Strength 1 Armor Coverage 150 Core Shielding 20 Evasion (%) 40 Recoil Reduction 3 Item Schematics ----------------- Lgt. Nuclear Core | -9/Materials | Scanalyzed Plasma Cannon | -7/Zion | Archive Imp. Thermal Shield | -7/Zion | Archive Gauss Rifle | -7/Zion | Archive Imp. Reaction Control System | -7/Zion | Archive Flexi-carbon Leg | -7/Zion | Archive Hpw. Shock Rifle | -7/Zion | Archive Transmission Jammer | -7/Zion | Archive Med. Treads | -7/Zion | Archive Hvy. Phase Cannon | -7/Zion | Archive Drone Bay | -7/Zion | Archive Lightning Gun | -7/Zion | Archive Imp. Actuator Array | -7/Zion | Archive Thermal Shield | -7/Zion | Archive Launcher Guidance Computer | -7/Zion | Archive Robot Schematics ------------------ R-06 Scavenger | -7/Zion | Archive L-31 Rogue | -7/Zion | Archive Fabricated ------------ Nothing Alien Tech Used ----------------- None Achievements -------------- Backstab Let's See Who's Tougher Robot Respite System Compromised The More The Merrier Tourist Unlikely Earthworm Challenges ------------ None Game ------ Seed ImpactFortressSpecial Manual? 0 Play Time 00:35:24 Cumulative 2.1 hours Start 2024.10.25 @ 21:20:54 End 2024.10.25 @ 21:55:21 Sessions 1 Manual Loads 0 Difficulty Rogue Special Mode None Game No. 4 Rogue 3 Adventurer 1 Explorer 0 Win Type - Total 0 Types 0/0/0/0/0/0/0/0/0 Lore% 1 Gallery% 5 Achievement% 9 Wizard Run 0 Options --------- Layout 1 ASCII 0 Keyboard 0 Movement Arrows Keybinds 0 Fullscreen 1 Font 24/Smallcaps Map View 50x40 Zoom Use 0% Tactical HUD 1 Map Filters NONE Filters NONE Steam 1 RUN: 416076ac-2fef-474b-958b-e3b24d1895b2